Workbook

Sheet גיליון1
A1: שם מפלגה | B1: סמל מפלגה | C1: מספר מצביעים | D1: מספר מנדטים | E1: הקולות החסרים למנדט | G1: ©טכנופוב מתמחים טופ
A2: רמת גן שלנו | B2: א | C2: 478 | D2: =IF(C2="","",IFERROR(VLOOKUP($A2,$T$3:$X$20,5,FALSE),$R2)) -> 1 | E2: 194 | I2: הסכמי עודפים | M2: =IF(C2<$G$9,0,C2) -> 478 | O2: =IFERROR(VLOOKUP($A2,$I$4:$K$8,3,FALSE),IF(M2=0,0,IFERROR(VLOOKUP(A2,$J$4:$L$8,3,FALSE),$C2))) -> 0 | P2: =INT(O2/$G$10) -> 0 | Q2: =$O2-(P2*$G$10) -> 0 | R2: =IF($P$22=0,$P2,IF($Q2>=LARGE($Q$2:$Q$21,$P$22),$P2+1,$P2)) -> 0 | V2: =SUM($U3:$U4)/VLOOKUP($T3,$A$2:$R$21,18,FALSE) -> 399.25 | Z2: 478 | AA2: 1 | AB2: 671 | AC2: -1
A3: רמת גן אחת | B3: רג | C3: 685 | D3: 2 | E3: 445 | M3: =IF(C3<$G$9,0,C3) -> 685 | O3: =IFERROR(VLOOKUP($A3,$I$4:$K$8,3,FALSE),IF(M3=0,0,IFERROR(VLOOKUP(A3,$J$4:$L$8,3,FALSE),$C3))) -> 685 | P3: =INT(O3/$G$10) -> 1 | Q3: 243.0909091 | R3: =IF($P$22=0,$P3,IF($Q3>=LARGE($Q$2:$Q$21,$P$22),$P3+1,$P3)) -> 2 | T3: =I4 -> הרמתגנים עם אביהוא | U3: =VLOOKUP($T3,$A$2:$M$21,13,FALSE) -> 1119 | V3: =INT($U3/$V2) -> 2 | W3: =U3-(V3*V2) -> 320.5 | X3: =IF($V5=0,$V3,IF($W3=$W5,$V3+1,$V3)) -> 3 | Z3: 685 | AA3: 2 | AB3: 1129 | AC3: -1
A4: זינגר לרמת גן | B4: יז | C4: 353 | D4: 0 | E4: 25 | I4: הרמתגנים עם אביהוא | J4: רמת גן שלנו | K4: =VLOOKUP($I4,$A$2:$M$21,13,FALSE)+VLOOKUP($J4,$A$2:$M$21,13,FALSE) -> 1597 | L4: 0 | M4: 0 | O4: 0 | P4: =INT(O4/$G$10) -> 0 | Q4: 0 | R4: 0 | T4: =J4 -> רמת גן שלנו | U4: =VLOOKUP($T4,$A$2:$M$21,13,FALSE) -> 478 | V4: =INT($U4/$V2) -> 1 | W4: =U4-(V4*V2) -> 78.75 | X4: =IF($V5=0,$V4,IF($W4=$W5,$V4+1,$V4)) -> 1 | Z4: 353 | AA4: 0 | AB4: 377 | AC4: -1
A5: הרמתגנים עם אביהוא | B5: אב | C5: 1119 | D5: 3 | E5: 569 | F5: מספר מושבים: | H5: 11 | I5: מרצ | J5: יש עתיד | K5: 647 | L5: 0 | M5: 1119 | O5: 1597 | P5: 3 | Q5: 271.2727273 | R5: 4 | V5: =VLOOKUP($T3,$A$2:$R$21,18,FALSE)-SUM($V3:$V4) -> 1 | W5: =MAX(W3:W4) -> 320.5 | Z5: 1119 | AA5: 3 | AB5: 1687 | AC5: -1
A6: יש עתיד | B6: פה | C6: 294 | D6: 0 | E6: 88 | L6: 0 | M6: 0 | O6: =IFERROR(VLOOKUP($A6,$I$4:$K$8,3,FALSE),IF(M6=0,0,IFERROR(VLOOKUP(A6,$J$4:$L$8,3,FALSE),$C6))) -> 0 | P6: 0 | Q6: 0 | R6: 0 | V6: =SUM($U7:$U8)/VLOOKUP($T7,$A$2:$R$21,18,FALSE) -> 647 | Z6: 294 | AA6: 0 | AB6: 381 | AC6: -1
A7: הליכוד | B7: מחל | C7: 814 | D7: 2 | E7: 313 | L7: 0 | M7: 814 | O7: 814 | P7: 1 | Q7: 372.0909091 | R7: 2 | T7: =I5 -> מרצ | U7: =VLOOKUP($T7,$A$2:$M$21,13,FALSE) -> 647 | V7: =INT($U7/$V6) -> 1 | W7: =U7-(V7*V6) -> 0 | X7: =IF($V9=0,$V7,IF($W7=$W9,$V7+1,$V7)) -> 1 | Z7: 814 | AA7: 2 | AB7: 1126 | AC7: -1
A8: מרצ | B8: מרצ | C8: 647 | D8: 1 | E8: 38 | L8: 0 | M8: 647 | O8: 647 | P8: 1 | Q8: 205.0909091 | R8: 1 | T8: =J5 -> יש עתיד | U8: =VLOOKUP($T8,$A$2:$M$21,13,FALSE) -> 0 | V8: =INT($U8/$V6) -> 0 | W8: =U8-(V8*V6) -> 0 | X8: =IF($V9=0,$V8,IF($W8=$W9,$V8+1,$V8)) -> 0 | Z8: 647 | AA8: 1 | AB8: 684 | AC8: -1
A9: רשימת הצעירים | B9: צע | C9: 1118 | D9: 2 | E9: 10 | F9: חסימה: | G9: =SUM(C:C)/H5*0.75 -> 375.5454545 | M9: 1118 | O9: 1118 | P9: 2 | Q9: 234.1818182 | R9: 2 | V9: =VLOOKUP($T7,$A$2:$R$21,18,FALSE)-SUM($V7:$V8) -> 0 | W9: =MAX(W7:W8) -> 0 | Z9: 1118 | AA9: 2 | AB9: 1127 | AC9: -1 | AD9: 1
G10: =SUM(M:M)/$H$5 -> 441.9090909 | M10: =IF(C10<$G$9,0,C10) -> 0 | O10: 0 | P10: 0 | Q10: 0 | R10: 0 | V10: =SUM($U11:$U12)/VLOOKUP($T11,$A$2:$R$21,18,FALSE) -> 
M11: 0 | O11: 0 | P11: 0 | Q11: 0 | R11: 0 | T11: =I6 -> 0 | U11: =VLOOKUP($T11,$A$2:$M$21,13,FALSE) ->  | V11: =INT($U11/$V10) ->  | W11: =U11-(V11*V10) ->  | X11: =IF($V13=0,$V11,IF($W11=$W13,$V11+1,$V11)) -> 
M12: 0 | O12: 0 | P12: 0 | Q12: 0 | R12: 0 | T12: =J6 -> 0 | U12: =VLOOKUP($T12,$A$2:$M$21,13,FALSE) ->  | V12: =INT($U12/$V10) ->  | W12: =U12-(V12*V10) ->  | X12: =IF($V13=0,$V12,IF($W12=$W13,$V12+1,$V12)) -> 
D13: =IF(C13="","",IFERROR(VLOOKUP($A13,$T$3:$X$20,5,FALSE),$R13)) ->  | M13: 0 | O13: 0 | P13: 0 | Q13: 0 | R13: 0 | V13: =VLOOKUP($T11,$A$2:$R$21,18,FALSE)-SUM($V11:$V12) ->  | W13: =MAX(W11:W12) -> 
M14: 0 | O14: 0 | P14: 0 | Q14: 0 | R14: 0 | V14: =SUM($U15:$U16)/VLOOKUP($T15,$A$2:$R$21,18,FALSE) -> 
M15: 0 | O15: 0 | P15: 0 | Q15: 0 | R15: 0 | T15: =I7 -> 0 | U15: =VLOOKUP($T15,$A$2:$M$21,13,FALSE) ->  | V15: =INT($U15/$V14) ->  | W15: =U15-(V15*V14) ->  | X15: =IF($V17=0,$V15,IF($W15=$W17,$V15+1,$V15)) -> 
M16: 0 | O16: 0 | P16: 0 | Q16: 0 | R16: 0 | T16: =J7 -> 0 | U16: =VLOOKUP($T16,$A$2:$M$21,13,FALSE) ->  | V16: =INT($U16/$V14) ->  | W16: =U16-(V16*V14) ->  | X16: =IF($V17=0,$V16,IF($W16=$W17,$V16+1,$V16)) -> 
M17: 0 | O17: 0 | P17: 0 | Q17: 0 | R17: 0 | V17: =VLOOKUP($T15,$A$2:$R$21,18,FALSE)-SUM($V15:$V16) ->  | W17: =MAX(W15:W16) -> 
M18: 0 | O18: 0 | P18: 0 | Q18: 0 | R18: 0 | V18: =SUM($U19:$U20)/VLOOKUP($T19,$A$2:$R$21,18,FALSE) -> 
M19: 0 | O19: 0 | P19: 0 | Q19: 0 | R19: 0 | T19: =I8 -> 0 | U19: =VLOOKUP($T19,$A$2:$M$21,13,FALSE) ->  | V19: =INT($U19/$V18) ->  | W19: =U19-(V19*V18) ->  | X19: =IF($V21=0,$V19,IF($W19=$W21,$V19+1,$V19)) -> 
M20: 0 | O20: 0 | P20: 0 | Q20: 0 | R20: 0 | T20: =J8 -> 0 | U20: =VLOOKUP($T20,$A$2:$M$21,13,FALSE) ->  | V20: =INT($U20/$V18) ->  | W20: =U20-(V20*V18) ->  | X20: =IF($V21=0,$V20,IF($W20=$W21,$V20+1,$V20)) -> 
M21: 0 | O21: 0 | P21: 0 | Q21: 0 | R21: 0 | V21: =VLOOKUP($T19,$A$2:$R$21,18,FALSE)-SUM($V19:$V20) ->  | W21: =MAX(W19:W20) -> 
P22: =$H$5-SUM(P2:P21) -> 3 | R22: =$H$5-SUM(R2:R21) -> 0
